bitfinex/quotes_SOLUSD_20240624
["timestamp","ask_amount","ask_price","bid_price","bid_amount"]
[1719259252864,30.89,128.28,128.12,20.0]
[1719259253052,30.89,128.28,128.13,0.17]
[1719259253441,38.9692,128.31,128.2,27.2997]
[1719259253442,30.89,128.31,128.2,27.2997]
[1719259253747,45.2242,128.34,128.25,7.7971]
[1719259253952,45.2242,128.34,128.2,7.7998]
[1719259253953,7.7954,128.29,128.2,7.7998]
[1719259254176,37.4323,128.34,128.21,20.0]
[1719259254491,37.4323,128.34,128.22,0.17]
[1719259254770,37.4323,128.34,128.23,7.7983]
[1719259254963,7.7944,128.3,128.22,8.139]
[1719259255164,7.7937,128.31,128.23,20.17]
[1719259255355,7.794,128.31,128.23,20.0]
[1719259255549,37.4323,128.34,128.21,7.7995]
[1719259255766,68.3223,128.34,128.15,39.0142]
[1719259255963,68.3223,128.34,128.18,19.5031]
[1719259256161,19.4848,128.31,128.19,20.0]
[1719259256367,78.3223,128.34,128.15,19.5074]
[1719259256368,7.7974,128.25,128.15,19.5074]
[1719259256686,31.06,128.3,128.17,19.5043]
[1719259256970,7.7959,128.28,128.2,7.7998]
[1719259257349,7.7961,128.27,128.19,27.3023]
[1719259257549,7.7941,128.31,128.2,0.34]
[1719259257744,7.7934,128.32,128.23,7.7983]
[1719259257949,37.4323,128.34,128.2,0.17]
[1719259257950,7.7942,128.3,128.22,7.9689]
[1719259258246,37.4323,128.34,128.2,19.6698]
[1719259258247,19.4816,128.33,128.2,19.6698]
[1719259258446,37.4323,128.34,128.21,20.0]
[1719259258650,37.4323,128.34,128.16,7.8025]
[1719259258651,19.4876,128.29,128.16,7.8025]
[1719259258865,19.4876,128.29,128.17,20.0]
[1719259259182,31.06,128.3,128.12,39.0229]
[1719259259368,7.7978,128.24,128.16,7.8026]
[1719259259551,0.17,128.29,128.17,19.5046]
[1719259260053,7.7962,128.27,128.17,19.5046]
[1719259260370,7.7969,128.26,128.18,20.0]
[1719259260551,30.89,128.3,128.24,7.7978]
[1719259260750,23.1122,128.4,128.27,19.49]
[1719259260977,38.6798,128.38,128.28,20.0]
[1719259261155,30.89,128.38,128.19,0.34]
[1719259261352,38.6795,128.38,128.22,100.0]
[1719259261554,23.1122,128.4,128.19,77.38]
[1719259261555,54.0022,128.4,128.27,7.7954]
[1719259261873,54.0022,128.4,128.23,20.34]
[1719259261874,73.4738,128.4,128.25,19.4922]
[1719259262059,54.0022,128.4,128.27,19.4889]
[1719259262259,7.7923,128.34,128.26,0.17]
[1719259262454,54.0022,128.4,128.26,19.6609]
[1719259262657,84.8922,128.4,128.25,19.4926]
[1719259262854,7.7946,128.3,128.21,7.7995]
[1719259263053,7.7966,128.27,128.18,7.8012]
[1719259263254,50.3731,128.32,128.15,16.5324]
[1719259263467,50.3731,128.32,128.2,7.8002]
[1719259263770,50.3731,128.32,128.13,12.19893387]
[1719259263771,30.89,128.28,128.17,39.008]
[1719259263973,7.7944,128.3,128.22,27.2954]
[1719259264180,0.17,128.31,128.14,20.24698417]
[1719259264485,7.7984,128.24,128.16,27.3088]
[1719259264778,0.17,128.25,128.16,19.5063]
[1719259264984,0.17,128.25,128.16,27.309]
[1719259265176,0.17,128.25,128.17,20.0]
[1719259265377,0.17,128.25,128.13,2.19893387]
[1719259265676,0.17,128.25,128.14,19.5087]
[1719259265882,6.0375,128.26,128.18,19.5029]
[1719259266085,6.0375,128.26,128.18,27.3038]
[1719259266259,0.34,128.25,128.13,2.19893387]
[1719259266461,6.0375,128.26,128.16,19.5055]
[1719259266656,13.8343,128.26,128.16,19.5055]
[1719259266873,30.89,128.3,128.2,7.8001]
[1719259267185,7.7968,128.26,128.18,27.3041]
[1719259267482,0.17,128.27,128.17,7.802]
[1719259267683,7.7978,128.25,128.16,7.8026]
[1719259267876,7.7978,128.25,128.17,20.0]
[1719259268075,7.9667,128.26,128.18,7.8014]
[1719259268393,7.7971,128.26,128.18,7.8013]
[1719259268568,0.17,128.27,128.14,39.0188]
[1719259268569,7.7999,128.21,128.14,19.5098]
[1719259268775,10.17,128.25,128.13,2.19893387]
[1719259269078,0.17,128.25,128.15,19.5073]
[1719259269260,7.9672,128.25,128.16,7.8024]
[1719259269467,0.17,128.25,128.16,7.8027]
[1719259269669,7.7942,128.3,128.22,7.7989]
[1719259269865,7.798,128.24,128.16,19.5062]
[1719259270066,19.4877,128.29,128.17,7.8016]
[1719259270067,50.3777,128.29,128.17,7.8016]
[1719259270282,19.491,128.27,128.14,7.8038]
[1719259270482,30.89,128.25,128.12,31.215356]
[1719259270687,19.4947,128.24,128.11,259.1]
[1719259270888,30.89,128.25,128.14,19.509]
[1719259271192,30.89,128.25,128.11,259.1]
[1719259271193,0.34,128.24,128.12,30.89]
[1719259271562,0.34,128.24,128.13,19.5106]
[1719259271792,6.4059,128.2,128.08,7.807]
[1719259271974,0.34,128.19,128.11,7.8057]
[1719259272296,0.34,128.19,128.1,7.8058]
[1719259272475,6.4059,128.2,128.15,7.8032]
[1719259272991,6.4059,128.2,128.12,19.5119]
[1719259273200,7.798,128.24,128.09,39.0349]
[1719259273388,14.8517956,128.26,128.09,39.0349]
[1719259273569,7.0546956,128.26,128.13,19.5107]
[1719259273778,7.8011,128.19,128.08,31.224584]
[1719259273984,19.4973,128.23,128.09,39.5161]
[1719259274191,19.4973,128.23,128.12,7.8047]
[1719259274389,7.802,128.18,128.08,31.224584]
[1719259274576,19.5002,128.21,128.08,50.743084]
[1719259274779,30.89,128.21,128.04,0.73192579]
[1719259274982,6.5483,128.16,128.03,19.5261]
[1719259275195,0.17,128.15,128.06,19.5218]
[1719259275400,7.8046,128.13,128.06,19.5218]
[1719259275577,7.804,128.14,128.06,27.3303]
[1719259275780,0.17,128.15,128.09,7.8065]
[1719259276012,0.17,128.15,128.05,19.5229]
[1719259276182,6.5483,128.16,128.12,7.8051]
[1719259276368,16.392,128.2,128.13,7.804]
[1719259276579,16.392,128.2,128.06,269.1]
[1719259276902,6.292,128.22,128.07,0.17]
[1719259277068,6.292,128.22,128.12,7.8048]
[1719259277387,7.8003,128.2,128.12,7.8051]
[1719259277699,6.292,128.22,128.13,19.5107]
[1719259277901,6.292,128.22,128.15,7.8031]
[1719259278190,6.292,128.22,128.13,27.3149]
[1719259278398,7.8001,128.21,128.13,27.3149]
[1719259278876,7.8018,128.18,128.1,27.321]
[1719259279209,7.8008,128.2,128.06,259.1]
[1719259279377,6.292,128.22,128.13,19.5101]
[1719259279572,6.292,128.22,128.14,7.8034]
[1719259279573,0.34,128.21,128.14,7.8034]
[1719259279789,6.292,128.22,128.14,7.8037]
[1719259279991,14.0915,128.22,128.13,19.5101]
[1719259280298,7.8015,128.19,128.11,7.8052]
[1719259280492,6.292,128.22,128.12,19.5122]
[1719259280698,7.8005,128.2,128.12,27.3169]
[1719259280911,7.7997,128.21,128.13,7.8044]
[1719259281109,6.292,128.22,128.12,19.5122]
[1719259281311,6.292,128.22,128.09,19.5165]
[1719259281608,25.7902,128.22,128.08,19.5179]
[1719259281783,7.8031,128.16,128.08,27.3253]
[1719259281989,19.5047,128.18,128.04,19.524]
[1719259282288,19.5047,128.18,128.06,19.5208]
[1719259282289,7.8031,128.16,128.06,19.5208]
[1719259282488,0.17,128.15,128.02,69.7743]
[1719259282804,0.17,128.15,128.08,19.518]
[1719259283009,7.9738,128.15,128.06,7.8082]
[1719259283188,0.17,128.15,128.11,7.8054]
[1719259283383,25.79,128.22,128.06,39.0441]
[1719259283578,7.8028,128.16,128.08,27.3256]
[1719259283803,7.8025,128.17,128.09,7.8068]
[1719259283978,7.8027,128.16,128.08,27.3259]
[1719259284177,7.8023,128.17,128.09,7.8069]
[1719259284395,7.8029,128.16,128.08,27.326]
[1719259284587,19.5042,128.18,128.05,19.5224]
[1719259284799,7.8041,128.14,128.06,7.8087]
[1719259285009,0.34,128.13,128.07,7.8082]
[1719259285206,0.34,128.13,128.06,7.8087]
[1719259285507,0.34,128.13,128.07,7.8081]
[1719259285703,7.8026,128.17,128.09,7.8065]
[1719259285904,0.34,128.16,128.07,19.5195]
[1719259286095,0.17,128.16,128.09,7.8069]
[1719259286405,0.34,128.16,128.07,19.5195]
[1719259286607,0.34,128.16,128.04,19.524]
[1719259286799,7.8049,128.13,128.04,7.8096]
[1719259287000,16.6493,128.15,128.01,31.236681]
[1719259287001,0.34,128.12,128.01,31.236681]
[1719259287302,0.34,128.12,128.06,7.8083]
[1719259287515,0.34,128.12,128.06,7.8087]
[1719259287709,0.34,128.13,128.05,19.523]
[1719259287888,0.17,128.12,128.05,19.523]
[1719259288089,0.17,128.13,128.06,7.8087]
[1719259288392,7.8063,128.11,128.03,7.8105]
[1719259288602,0.17,128.13,128.04,19.5238]
[1719259288800,0.17,128.14,128.01,31.236681]
[1719259288997,0.17,128.14,128.02,20.0]
[1719259289203,0.17,128.14,128.05,19.5228]
[1719259289405,0.17,128.14,128.07,7.8081]
[1719259289714,7.974,128.14,128.06,7.8086]
[1719259289891,16.6493,128.15,128.07,19.5202]
[1719259290102,16.6493,128.15,128.08,7.8075]
[1719259290285,7.8014,128.19,128.11,7.8055]
[1719259290488,16.0699,128.21,128.1,7.8059]
[1719259290808,16.0699,128.21,128.13,19.511]
[1719259290988,16.0699,128.21,128.14,7.8033]
[1719259291303,16.0699,128.21,128.11,0.17]
[1719259291487,16.0699,128.21,128.13,7.8045]
[1719259291695,16.0699,128.21,128.04,30.74]
[1719259291887,16.0699,128.21,128.07,20.17]
[1719259292203,16.0699,128.21,128.09,30.74]
[1719259292401,6.292,128.22,128.1,20.34]
[1719259292608,8.79736538,128.26,128.2,19.5004]
[1719259292812,0.6487956,128.26,128.22,7.7986]
[1719259293115,0.6487956,128.26,128.23,7.7978]
[1719259293317,0.6487956,128.26,128.22,7.799]
[1719259293488,0.6487956,128.26,128.21,19.4986]
[1719259294010,0.6487956,128.26,128.25,7.7972]
[1719259294221,0.6487956,128.26,128.24,7.7978]
[1719259294527,0.6487956,128.26,128.25,7.7972]
[1719259295298,0.6487956,128.26,128.25,27.9672]
[1719259295713,0.6487956,128.26,128.25,28.1372]
[1719259296122,22.1289,128.4,128.33,7.7922]
[1719259296422,22.1289,128.4,128.32,27.275]
[1719259296827,29.9171,128.4,128.32,27.275]
[1719259296996,22.1289,128.4,128.33,7.7923]
[1719259297201,22.1289,128.4,128.32,27.2751]
[1719259297498,22.1289,128.4,128.31,7.7935]
[1719259297705,22.1289,128.4,128.32,7.7928]
[1719259298022,22.1289,128.4,128.31,19.4834]
[1719259298239,7.9589,128.39,128.3,7.7937]
[1719259298527,0.17,128.39,128.32,7.7926]
[1719259299023,0.17,128.39,128.26,30.74]
[1719259299235,7.7901,128.37,128.29,27.2806]
[1719259299396,0.17,128.36,128.25,20.17]
[1719259299601,7.7928,128.33,128.25,7.797]
[1719259299825,19.4765,128.36,128.24,19.4937]
[1719259300007,0.17,128.35,128.24,27.2915]
[1719259300216,0.17,128.35,128.2,69.7386]
[1719259300217,0.34,128.35,128.21,19.4985]
[1719259300416,7.7947,128.3,128.22,7.7989]
[1719259300622,19.4802,128.34,128.23,7.7983]
[1719259300623,0.17,128.29,128.23,7.7983]
[1719259300807,0.17,128.35,128.18,39.0049]
[1719259301125,0.17,128.35,128.25,19.4922]
[1719259301427,7.7914,128.35,128.27,27.2847]
[1719259301643,22.1289,128.4,128.25,38.9859]
[1719259302001,19.4726,128.39,128.26,19.4907]
[1719259302219,7.7898,128.38,128.3,7.7939]
[1719259302627,7.7898,128.38,128.29,7.7947]
[1719259302827,22.1289,128.4,128.3,7.7939]
[1719259303009,22.1289,128.4,128.3,27.2781]
[1719259303215,22.1289,128.4,128.3,19.4845]
[1719259303429,7.7916,128.35,128.3,22.1289]
[1719259303646,7.7916,128.35,128.24,38.9863]
[1719259303647,7.7905,128.37,128.28,7.7953]
[1719259303938,7.7917,128.35,128.26,7.7961]
[1719259304137,7.7925,128.33,128.25,29.9261]
[1719259304337,7.7925,128.33,128.25,7.7972]
[1719259304536,61.0699,128.4,128.22,30.74]
[1719259304744,0.34,128.39,128.27,7.7959]
[1719259304934,19.8128,128.39,128.26,27.2871]
[1719259305138,19.8128,128.39,128.26,19.4906]
[1719259305329,7.7922,128.34,128.26,27.2871]
[1719259305537,0.17,128.33,128.26,27.2871]
[1719259308151,0.17,128.33,128.2,38.9986]
[1719259308334,7.7948,128.29,128.21,7.7995]
[1719259308539,7.7948,128.29,128.22,7.7918]
[1719259308845,0.17,128.28,128.17,39.0084]
[1719259309033,7.7943,128.3,128.22,7.799]
[1719259309346,7.796,128.27,128.21,7.7948]
[1719259309564,0.34,128.29,128.22,7.799]
[1719259309565,0.17,128.29,128.22,7.799]
[1719259309749,0.17,128.29,128.23,7.7984]
[1719259309940,0.34,128.3,128.21,27.2977]
[1719259310144,0.34,128.3,128.21,19.4985]
[1719259310353,7.7954,128.28,128.21,19.4985]
[1719259310539,0.34,128.3,128.21,19.4985]
[1719259310540,8.1347,128.3,128.21,19.4985]
[1719259310744,8.1347,128.3,128.22,7.7989]
[1719259311057,7.7949,128.29,128.21,27.298]
[1719259313755,0.17,128.25,128.17,7.8016]
[1719259313928,7.7978,128.24,128.17,7.8016]
[1719259315147,7.9674,128.25,128.17,7.8016]
[1719259315454,0.17,128.26,128.16,25.5947]
[1719259315455,21.1948,128.29,128.16,6.0892]
[1719259315647,0.17,128.28,128.19,7.8003]
[1719259315848,0.17,128.28,128.17,19.5045]
[1719259316061,7.7973,128.25,128.17,19.5045]
[1719259316357,7.7962,128.27,128.19,7.8005]
[1719259316558,0.17,128.26,128.19,7.8005]
[1719259317160,7.9666,128.26,128.18,7.8013]
[1719259317338,21.1948,128.29,128.19,19.502]
[1719259317536,8.136,128.28,128.2,7.8002]
[1719259317734,8.136,128.28,128.19,19.502]
[1719259317735,0.34,128.28,128.19,19.502]
[1719259317936,19.829,128.28,128.16,25.5948]
[1719259318270,7.7979,128.24,128.16,33.3974]
[1719259318475,7.7982,128.24,128.16,25.5948]
[1719259318770,7.7997,128.21,128.13,27.3148]
[1719259318943,7.7991,128.22,128.14,7.8036]
[1719259319263,8.1397,128.21,128.13,27.3148]
[1719259319447,7.8003,128.2,128.13,19.5104]
[1719259319650,7.8016,128.18,128.12,19.829]
[1719259319950,7.8016,128.18,128.1,27.3208]
[1719259320165,7.9721,128.17,128.1,27.3208]
[1719259320365,0.17,128.17,128.1,27.3208]
[1719259320666,7.9722,128.17,128.1,19.5148]
[1719259320974,0.17,128.19,128.1,19.5148]
[1719259321262,0.17,128.18,128.07,390.4]
[1719259321465,0.17,128.19,128.12,7.8046]
[1719259321669,7.7995,128.22,128.09,39.033]
[1719259321888,19.4975,128.23,128.08,19.5183]
[1719259322175,6.1372,128.19,128.08,19.5183]
[1719259322461,41.3368,128.19,128.05,19.5226]
[1719259322667,7.8038,128.15,128.05,19.5226]
[1719259322874,41.3368,128.19,128.05,19.5226]
[1719259322875,7.8049,128.13,128.05,27.3315]
[1719259323164,0.17,128.14,128.07,19.52]
[1719259323367,0.17,128.14,128.04,19.524]
[1719259323670,0.17,128.14,128.04,39.03]
[1719259324064,7.9741,128.14,128.06,7.8084]
[1719259324263,0.17,128.13,128.06,7.8084]
[1719259324456,7.974,128.14,128.06,27.3304]
[1719259324652,7.8045,128.13,128.06,19.5217]
[1719259324857,7.8058,128.11,128.0,1064.74]
[1719259325067,0.17,128.1,128.02,19.5273]
[1719259325443,0.17,128.1,127.99,19.5319]
[1719259325642,7.8071,128.09,127.96,69.8118]
[1719259325852,7.9764,128.1,128.03,7.8045]
[1719259326053,7.8087,128.07,127.98,7.8132]
[1719259326255,0.17,128.1,127.96,69.8118]
[1719259326468,6.3274,128.09,127.96,39.0718]
[1719259326663,6.3274,128.09,128.0,7.8118]
[1719259326664,8.1476,128.08,128.0,7.8118]
[1719259326864,0.34,128.08,127.98,19.5332]
[1719259327168,7.8083,128.07,128.0,7.8121]
[1719259327475,8.1478,128.08,128.0,7.8121]
[1719259327771,8.1478,128.08,128.01,7.8118]
[1719259327977,8.1478,128.08,128.0,27.3432]
[1719259328151,7.8095,128.05,127.97,19.5351]
[1719259328355,7.9802,128.04,127.96,7.8144]
[1719259328562,7.8113,128.02,127.95,7.8153]
[1719259328759,16.1164,128.08,128.01,7.8114]
[1719259329079,16.1164,128.08,128.02,7.8111]
[1719259329251,16.1164,128.08,128.0,27.3426]
[1719259329446,23.9244,128.08,128.0,27.3426]
[1719259329760,16.1164,128.08,127.99,7.813]
[1719259330075,0.17,128.07,127.99,7.8126]
[1719259330245,0.17,128.07,127.98,19.5339]
[1719259330448,7.8105,128.04,127.97,7.8142]
[1719259330648,7.8105,128.04,127.96,15.626]
[1719259330871,0.17,128.05,127.98,7.8133]
[1719259331073,0.34,128.05,127.98,7.8133]
[1719259331273,0.34,128.05,127.97,19.5347]
[1719259331479,0.34,128.05,127.96,7.8113]
[1719259331775,8.1494,128.05,127.97,7.8139]
[1719259331957,7.8101,128.04,127.97,7.8139]
[1719259332283,0.17,128.03,127.97,7.8139]
[1719259332773,0.34,128.03,127.94,7.8157]
[1719259332985,7.8146,127.97,127.89,27.3664]
[1719259333157,7.9839,127.98,127.9,15.6286]
[1719259333363,7.9844,127.97,127.9,7.8101]
[1719259333674,0.17,127.96,127.89,19.5473]
[1719259333865,7.8129,128.0,127.91,19.5442]
[1719259334181,0.34,127.99,127.91,19.5442]
[1719259334361,8.1532,127.99,127.91,19.5442]
[1719259334679,7.8138,127.98,127.91,27.362]
[1719259334869,7.8139,127.98,127.91,19.5442]
[1719259335082,7.8139,127.98,127.85,45.43808355]
[1719259335083,0.34,127.97,127.89,19.526]
[1719259335265,16.2779,127.96,127.89,19.526]
[1719259335471,0.17,127.95,127.87,19.5502]
[1719259335791,16.2779,127.96,127.83,10.0]
[1719259336150,16.2779,127.96,127.91,7.8179]
[1719259336370,7.8124,128.01,127.87,16.2779]
[1719259336578,6.0173,128.07,127.92,39.0866]
[1719259336763,6.0173,128.07,127.95,30.74]
[1719259336965,7.8059,128.11,128.03,7.8101]
[1719259337171,7.8066,128.1,128.0,19.5301]
[1719259337372,6.3683,128.12,128.03,7.8104]
[1719259337678,7.8062,128.11,128.03,7.8104]
[1719259337851,6.3683,128.12,128.04,45.0]
[1719259338051,7.8058,128.11,128.04,45.0]
[1719259338269,6.3683,128.12,128.04,45.0]
[1719259338270,6.3683,128.12,128.05,7.8094]
[1719259338465,14.1736,128.12,128.06,45.0]
[1719259338674,6.3683,128.12,128.04,64.5239]
[1719259338878,6.3776,128.18,128.05,20.34]
[1719259339087,6.3776,128.18,128.1,19.5149]
[1719259339375,20.66086366,128.24,128.15,7.8027]
[1719259339584,12.86296366,128.24,128.14,27.312]
[1719259339763,6.3776,128.24,128.15,45.0]
[1719259340553,7.8005,128.2,128.15,45.0]
[1719259340863,7.7998,128.21,128.15,45.0]
[1719259341063,7.799,128.22,128.15,45.0]
[1719259341272,7.7985,128.23,128.15,45.0]
[1719259341673,6.3776,128.24,128.15,45.0]
[1719259342068,16.1956,128.26,128.19,7.8007]
[1719259342276,16.1956,128.26,128.2,45.0]
[1719259342481,23.9925,128.26,128.2,45.0]
[1719259342685,16.1956,128.26,128.2,45.0]
[1719259342878,23.9924,128.26,128.19,45.0]
[1719259343074,16.1956,128.26,128.18,52.8013]
[1719259343282,23.9925,128.26,128.18,45.0]
[1719259343583,16.1956,128.26,128.18,45.0]
[1719259344172,16.1956,128.26,128.17,45.0]
[1719259344379,16.1956,128.26,128.17,52.802]
[1719259344575,0.34,128.25,128.17,52.802]
[1719259344789,0.3340486,128.27,128.18,19.5026]
[1719259344992,0.17,128.26,128.19,52.8008]
[1719259345303,8.1300486,128.27,128.19,52.8009]
[1719259345587,8.1300486,128.27,128.19,60.931149]
[1719259345790,8.1300486,128.27,128.19,53.130249]
[1719259345791,0.3340486,128.27,128.19,53.130249]
[1719259345987,7.7967,128.26,128.19,45.0]
[1719259346179,8.1301486,128.27,128.19,45.0]
[1719259346382,0.3340486,128.27,128.2,19.5]
[1719259346695,0.3340486,128.27,128.21,52.7992]
[1719259346989,0.3340486,128.27,128.21,45.0]
[1719259347176,0.3340486,128.27,128.21,52.7996]
[1719259347683,8.1302486,128.27,128.21,45.0]
[1719259347890,8.1302486,128.27,128.2,45.0]
[1719259347891,0.3340486,128.27,128.2,45.0]
[1719259348268,0.3340486,128.27,128.2,52.7997]
[1719259348571,0.3340486,128.27,128.21,19.4986]
[1719259348781,0.3340486,128.27,128.22,45.0]
[1719259349600,0.3340486,128.27,128.21,45.0]
[1719259349776,0.3340486,128.27,128.21,52.7995]
[1719259349962,0.3340486,128.27,128.21,45.0]
[1719259350965,0.3340486,128.27,128.21,52.7996]
[1719259351490,0.3340486,128.27,128.22,39.6672]
[1719259351666,0.3340486,128.27,128.24,19.4935]
[1719259351987,1e-08,128.27,128.26,7.7966]
[1719259352187,1e-08,128.27,128.26,73.1366]
[1719259353489,1e-08,128.27,128.26,72.7966]
[1719259353691,1e-08,128.27,128.26,45.0]
[1719259353865,1e-08,128.27,128.24,19.4935]
[1719259354065,1e-08,128.27,128.17,19.4842]
[1719259354389,1e-08,128.27,128.2,7.8002]
[1719259354580,7.7968,128.26,128.18,27.3041]
[1719259354776,1e-08,128.27,128.18,19.5027]
[1719259355101,0.17,128.25,128.15,19.5072]
[1719259355267,36.03260001,128.27,128.13,7.804]
[1719259355268,7.8003,128.2,128.13,7.804]
[1719259355688,0.17,128.19,128.12,7.8051]
[1719259355889,7.9706,128.2,128.09,19.5168]
[1719259356090,0.17,128.21,128.14,27.2913]
[1719259356290,8.1401,128.21,128.14,19.4879]
[1719259356494,8.1401,128.21,128.13,27.3151]
[1719259356801,8.1397,128.21,128.13,27.3151]
[1719259356977,0.34,128.21,128.11,7.8052]
[1719259357180,0.34,128.21,128.1,19.5153]
[1719259357399,7.802,128.18,128.12,19.4921]
[1719259357578,0.34,128.17,128.1,27.3212]
[1719259357777,0.34,128.17,128.11,7.8057]
[1719259358004,0.34,128.17,128.1,27.3215]
[1719259358217,7.8009,128.19,128.11,7.8055]
[1719259358381,0.17,128.2,128.1,19.5153]
[1719259358889,7.8017,128.18,128.1,27.3212]
[1719259359119,7.7993,128.22,128.14,7.8037]
[1719259359285,6.6265,128.24,128.12,7.805]
[1719259359286,7.8003,128.2,128.12,7.805]
[1719259359485,6.6265,128.24,128.09,19.6688]
[1719259359698,6.6265,128.24,128.1,20.0]
[1719259359699,7.8021,128.17,128.1,20.0]
[1719259359882,7.8023,128.17,128.09,39.0154]
[1719259360092,23.42,128.23,127.96,691.22722197]
[1719259360093,7.8039,128.15,128.05,19.5222]
[1719259360409,7.8069,128.1,128.02,50.7581]
[1719259360609,0.17,128.14,128.02,50.7581]
[1719259360610,0.34,128.14,128.02,23.42]
[1719259360783,0.34,128.14,128.05,7.8093]
[1719259360979,0.34,128.14,128.04,19.5245]
[1719259361184,7.8075,128.09,128.01,46.8497]
[1719259361386,0.17,128.1,128.02,20.0]
[1719259361581,7.8051,128.13,128.03,19.5256]
[1719259361813,0.17,128.14,128.01,19.5089]
[1719259361814,0.17,128.14,128.09,7.8068]
[1719259361980,0.17,128.14,128.02,30.74]
[1719259362184,0.17,128.15,128.02,30.74]
[1719259362385,7.8058,128.11,128.01,39.0375]
[1719259362596,19.679,128.15,128.04,7.8099]
[1719259362810,7.807,128.09,128.01,19.5089]
[1719259363024,19.512,128.13,128.02,20.0]
[1719259363312,16.4266,128.12,128.0,19.5302]
[1719259363488,16.4266,128.12,128.0,39.0422]
[1719259363692,7.8071,128.09,128.01,7.8114]
[1719259363891,0.34,128.08,128.01,7.8114]
[1719259364190,0.17,128.08,128.01,7.8117]
[1719259364397,16.0866,128.12,128.02,19.5277]
[1719259364596,0.34,128.11,128.02,19.5277]
[1719259364815,0.34,128.11,128.02,27.3388]
[1719259365017,7.8085,128.07,128.0,19.512]
[1719259365200,7.8074,128.09,128.01,7.8114]
[1719259365397,16.0866,128.12,127.98,30.74]
[1719259365596,16.0866,128.12,128.04,19.5247]
[1719259365798,16.0866,128.12,128.07,7.8077]
[1719259366318,16.0866,128.12,128.05,20.0]
[1719259366515,23.8921,128.12,128.04,7.81]
[1719259366718,16.0866,128.12,128.05,27.8093]
[1719259366900,16.0866,128.12,128.06,7.8084]
[1719259367094,7.8035,128.15,128.07,7.808]
[1719259367408,7.8035,128.15,128.07,27.328]
[1719259367594,6.4359,128.16,128.08,7.8074]
[1719259367797,14.239,128.16,128.07,19.5201]
[1719259368009,6.4359,128.16,128.1,7.8059]
[1719259368325,6.4359,128.16,128.06,0.17]
[1719259368490,6.4359,128.16,128.11,7.8054]
[1719259369128,6.4359,128.16,128.06,0.34]
[1719259369321,7.7997,128.21,128.12,19.5121]
[1719259369322,6.4349,128.21,128.12,19.5121]
[1719259370112,6.4349,128.21,128.14,7.8038]
[1719259370499,6.4349,128.21,128.09,30.74]
[1719259370825,6.4349,128.21,128.11,19.5139]
[1719259371030,6.4349,128.21,128.12,20.0]
[1719259371232,7.8014,128.19,128.12,20.0]
[1719259371412,0.17,128.18,128.12,27.8051]
[1719259371618,6.4349,128.21,128.12,20.0]
[1719259371815,0.34,128.2,128.12,20.0]
[1719259372014,8.1403,128.2,128.12,27.805]
[1719259372209,7.801,128.19,128.12,20.0]
[1719259372427,7.8028,128.16,128.09,30.74]
[1719259372928,0.17,128.15,128.06,7.8086]